bitfinex-derivatives/quotes_SOLF0:USTF0_20241218
["timestamp","ask_amount","ask_price","bid_price","bid_amount"]
[1734538721526,11.33000568,215.79,215.67,4.6165]
[1734538721733,2.54,215.8,215.69,2.3183]
[1734538721929,18.162296,215.84,215.67,4.6165]
[1734538722228,18.162296,215.84,215.68,5.51559903]
[1734538722229,2.54,215.83,215.68,5.51559903]
[1734538723831,2.54,215.83,215.72,2.3181]
[1734538724236,2.3176,215.78,215.72,2.3181]
[1734538724431,2.54,215.77,215.72,2.3181]
[1734538724733,4.8576,215.77,215.72,2.3181]
[1734538724931,2.54,215.77,215.68,5.51559903]
[1734538725437,2.3178,215.76,215.7,2.3183]
[1734538725638,2.54,215.77,215.68,5.51559903]
[1734538726649,4.8577,215.77,215.7,2.3183]
[1734538726843,4.8577,215.77,215.68,5.51559903]
[1734538727036,2.54,215.77,215.68,5.51559903]
[1734538727939,2.54,215.77,215.73,2.318]
[1734538728146,4.8575,215.78,215.73,2.318]
[1734538729447,2.54,215.8,215.76,2.3176]
[1734538729647,2.54,215.81,215.74,18.162296]
[1734538729854,2.54,215.81,215.77,2.3176]
[1734538730146,53.0,215.97,215.74,18.162296]
[1734538730348,5.58683473,215.93,215.82,18.162296]
[1734538730547,57.5438,215.97,215.86,18.162296]
[1734538730844,53.02,216.1,215.86,18.162296]
[1734538731147,2.3154,215.98,215.91,2.316]
[1734538731346,1.5335,216.03,215.9,18.162296]
[1734538731648,2.54,216.02,215.9,18.162296]
[1734538731847,2.54,216.01,215.9,18.162296]
[1734538732048,2.54,216.01,215.95,2.3156]
[1734538732249,2.54,216.01,215.9,18.162296]
[1734538733143,2.54,216.01,215.87,11.22552634]
[1734538733446,2.54,216.01,215.87,8.68552634]
[1734538733845,2.54,216.01,215.89,2.3162]
[1734538734047,2.54,216.01,215.87,8.68552634]
[1734538734449,2.54,216.0,215.87,8.68552634]
[1734538734846,2.54,216.0,215.88,2.54]
[1734538735449,2.54,216.0,215.87,8.68552634]
[1734538736147,2.3156,215.96,215.89,2.3163]
[1734538736347,2.54,215.95,215.89,2.3163]
[1734538736547,2.3158,215.94,215.87,5.4017]
[1734538736747,2.54,215.95,215.87,3.0853]
[1734538736946,2.54,215.95,215.82,19.724796]
[1734538737251,2.54,215.95,215.85,2.3167]
[1734538738051,2.316,215.92,215.86,2.3166]
[1734538738251,2.54,215.95,215.78,21.250996]
[1734538738446,2.3164,215.88,215.78,21.250996]
[1734538738647,4.8564,215.88,215.81,2.3172]
[1734538738846,2.54,215.88,215.78,21.250996]
[1734538739749,2.54,215.88,215.79,5.61906217]
[1734538740155,4.8564,215.88,215.82,2.317]
[1734538740344,4.8564,215.88,215.79,5.61906217]
[1734538740345,2.54,215.88,215.78,21.250996]
[1734538740648,2.54,215.88,215.76,2.54]
[1734538740649,2.54,215.87,215.74,2.3179]
[1734538740855,2.54,215.87,215.7,4.5472]
[1734538740856,4.0784,215.87,215.7,4.5472]
[1734538741651,4.0784,215.87,215.71,5.63123633]
[1734538742554,4.0784,215.87,215.74,2.3179]
[1734538742555,2.3173,215.8,215.74,2.3179]
[1734538742857,2.54,215.79,215.7,4.5472]
[1734538743056,2.3178,215.76,215.71,2.3182]
[1734538743652,53.0,215.92,215.73,18.162296]
[1734538743856,2.54,215.9,215.77,18.162296]
[1734538744056,53.0,215.92,215.77,18.162296]
[1734538744057,2.54,215.89,215.77,18.162296]
[1734538744256,4.8563,215.89,215.77,18.162296]
[1734538744759,2.3166,215.86,215.8,2.3172]
[1734538745056,2.54,215.89,215.77,18.162296]
[1734538745753,2.54,215.89,215.7,4.5472]
[1734538745957,2.54,215.89,215.7,22.709496]
[1734538746156,18.162296,215.88,215.7,22.709496]
[1734538746353,2.3174,215.79,215.7,22.709496]
[1734538746552,2.54,215.78,215.7,22.709496]
[1734538746753,2.54,215.77,215.7,22.709496]
[1734538746952,2.54,215.76,215.7,22.709496]
[1734538747960,2.54,215.76,215.72,2.3181]
[1734538748152,18.162296,215.88,215.7,22.709496]
[1734538748353,2.56,215.87,215.7,22.709496]
[1734538748559,2.3171,215.82,215.76,2.3177]
[1734538748758,2.56,215.81,215.76,2.3177]
[1734538748960,2.56,215.8,215.7,22.709496]
[1734538749155,2.56,215.8,215.7,21.250696]
[1734538749855,2.56,215.8,215.7,23.568896]
[1734538750055,2.56,215.8,215.7,21.250696]
[1734538750459,2.3178,215.76,215.7,23.568896]
[1734538750761,2.3178,215.76,215.7,21.250696]
[1734538750954,2.3178,215.76,215.71,2.3182]
[1734538752164,2.56,215.8,215.7,21.250696]
[1734538752366,2.3179,215.74,215.69,2.3183]
[1734538752559,4.8779,215.74,215.69,2.3183]
[1734538752865,4.5342,215.84,215.7,18.162296]
[1734538753055,2.56,215.83,215.7,18.162296]
[1734538753256,2.56,215.83,215.67,23.81032051]
[1734538754156,4.5342,215.84,215.67,23.81032051]
[1734538754354,2.56,215.83,215.67,23.81032051]
[1734538754766,2.56,215.83,215.7,2.3183]
[1734538755164,2.56,215.83,215.67,5.64802451]
[1734538755365,18.162296,215.77,215.59,18.781286]
[1734538755564,2.56,215.76,215.59,37.93015394]
[1734538755866,2.3186,215.68,215.61,5.59714686]
[1734538756066,2.56,215.67,215.61,5.59714686]
[1734538756463,2.56,215.67,215.64,2.3189]
[1734538756666,2.56,215.67,215.61,5.59714686]
[1734538756866,2.56,215.7,215.63,18.162296]
[1734538757657,2.56,215.69,215.63,18.162296]
[1734538757856,1.5502,215.75,215.63,18.162296]
[1734538757857,2.56,215.68,215.63,18.162296]
[1734538758061,1.5502,215.75,215.63,18.162296]
[1734538758062,2.56,215.7,215.63,18.162296]
[1734538758266,2.56,215.71,215.63,18.162296]
[1734538759263,4.8783,215.71,215.66,2.3187]
[1734538759471,2.56,215.71,215.62,1.4591]
[1734538760267,2.56,215.71,215.6,5.67517795]
[1734538760464,2.3187,215.67,215.62,2.3192]
[1734538760670,2.56,215.66,215.6,5.67517795]
[1734538760869,2.56,215.68,215.65,2.3188]
[1734538761265,2.56,215.68,215.6,5.67517795]
[1734538761569,2.56,215.68,215.62,2.3191]
[1734538761570,2.3187,215.67,215.62,2.3191]
[1734538762171,2.56,215.68,215.59,19.652996]
[1734538762366,2.56,215.68,215.59,25.10105199]
[1734538763564,2.56,215.68,215.6,2.3193]
[1734538763771,2.56,215.68,215.55,18.162296]
[1734538764270,2.56,215.68,215.53,0.84563]
[1734538764568,2.56,215.68,215.54,5.45381393]
[1734538764569,1.4653,215.67,215.54,5.45381393]
[1734538764766,2.3194,215.61,215.55,2.3198]
[1734538765071,2.56,215.6,215.54,5.45381393]
[1734538766169,2.56,215.6,215.55,2.3199]
[1734538767173,2.3195,215.59,215.54,2.32]
[1734538767672,2.56,215.6,215.53,0.84563]
[1734538768374,2.3199,215.56,215.53,0.84563]
[1734538768572,2.56,215.55,215.53,0.84563]
[1734538770177,2.56,215.55,215.53,12.2137954]
[1734538770477,2.56,215.55,215.54,2.3201]
[1734538770669,12.8334654,215.67,215.53,12.2137954]
[1734538770876,1.4653,215.67,215.56,11.3681654]
[1734538771069,2.56,215.66,215.59,11.3681654]
[1734538771272,2.56,215.67,215.62,11.3681654]
[1734538771468,3.0946,215.73,215.65,2.3188]
[1734538771775,2.3188,215.66,215.58,11.3681654]
[1734538771977,2.56,215.69,215.61,11.3681654]
[1734538772274,2.56,215.69,215.61,18.17225835]
[1734538772473,2.56,215.71,215.61,18.17225835]
[1734538772676,1.5183,215.78,215.65,18.17225835]
[1734538772876,2.56,215.77,215.65,18.17225835]
[1734538773078,2.56,215.77,215.66,1.4959]
[1734538773373,2.3177,215.76,215.66,1.4959]
[1734538773573,2.56,215.77,215.65,18.17225835]
[1734538773774,53.06,215.79,215.63,1.4959]
[1734538774077,2.56,215.79,215.67,18.17225835]
[1734538774274,2.56,215.79,215.68,4.0818]
[1734538774469,18.17225835,215.87,215.68,4.0818]
[1734538774674,2.56,215.86,215.68,4.0818]
[1734538774972,23.82466266,215.83,215.67,18.17225835]
[1734538775167,1.5098,215.82,215.64,1.5642]
[1734538775369,18.17225835,215.79,215.64,1.5642]
[1734538775573,2.3183,215.71,215.65,2.3188]
[1734538775872,4.8783,215.71,215.65,2.3188]
[1734538776073,4.8783,215.71,215.63,19.66815835]
[1734538776074,2.56,215.71,215.55,19.14886794]
[1734538776267,2.56,215.71,215.57,18.17225835]
[1734538776979,2.56,215.71,215.53,0.84563]
[1734538777176,2.56,215.71,215.59,5.59837323]
[1734538777673,2.56,215.71,215.59,23.77063158]
[1734538777879,2.56,215.71,215.6,4.6383]
[1734538778078,2.56,215.71,215.59,5.59837323]
[1734538778279,2.56,215.71,215.59,23.77063158]
[1734538778677,4.8782,215.71,215.62,2.3191]
[1734538778981,2.3182,215.71,215.6,2.56]
[1734538779274,2.3183,215.7,215.6,2.56]
[1734538779480,2.56,215.72,215.59,5.59837323]
[1734538779878,2.56,215.72,215.6,2.3193]
[1734538780080,2.56,215.72,215.59,5.59837323]
[1734538780279,2.56,215.72,215.61,2.3192]
[1734538781378,2.319,215.64,215.59,7.91777323]
[1734538781577,2.56,215.63,215.59,5.59837323]
[1734538781980,2.56,215.63,215.53,2.33523]
[1734538782875,2.32,215.55,215.53,0.84563]
[1734538783080,20.73225835,215.63,215.53,0.84563]
[1734538783081,2.56,215.54,215.53,0.84563]
[1734538784180,4.8801,215.54,215.53,0.84563]
[1734538785885,2.3201,215.54,215.53,0.84563]
[1734538786183,2.58,215.55,215.53,0.84563]
[1734538786483,2.58,215.57,215.53,0.84563]
[1734538787675,2.32,215.55,215.53,0.84563]
[1734538788878,1.5558,215.62,215.53,0.84563]
[1734538788879,2.3197,215.58,215.53,0.84563]
[1734538789084,2.58,215.57,215.53,0.84563]
[1734538789785,2.58,215.57,215.53,3.16573]
[1734538790083,2.58,215.57,215.53,0.84563]
[1734538790287,2.58,215.58,215.54,2.32]
[1734538790476,2.58,215.58,215.53,0.84563]
[1734538790881,2.58,215.58,215.53,3.16573]
[1734538791081,2.58,215.58,215.53,0.84563]
[1734538791281,2.58,215.6,215.56,2.3198]
[1734538791480,3.0372,215.66,215.51,4.5729]
[1734538791481,2.58,215.61,215.54,18.17225835]
[1734538791887,1.5018,215.69,215.54,18.17225835]
[1734538792086,2.58,215.68,215.58,18.17225835]
[1734538792388,2.58,215.69,215.65,2.3188]
[1734538792583,2.58,215.7,215.65,2.3188]
[1734538792783,53.08,215.78,215.63,4.578]
[1734538793088,2.3176,215.78,215.66,18.17225835]
[1734538793284,2.58,215.77,215.67,2.58]
[1734538793488,2.58,215.81,215.72,2.318]
[1734538793683,2.3174,215.79,215.72,2.318]
[1734538793882,2.58,215.81,215.7,18.17225835]
[1734538794088,2.3178,215.75,215.69,2.3184]
[1734538794294,2.58,215.81,215.67,2.58]
[1734538794885,2.58,215.81,215.66,18.17225835]
[1734538795284,2.58,215.81,215.69,2.3184]
[1734538795585,2.58,215.81,215.66,18.17225835]
[1734538795586,2.58,215.81,215.68,5.47382126]
[1734538795991,2.3178,215.75,215.7,2.3183]
[1734538796289,2.3178,215.75,215.68,5.47382126]
[1734538796788,2.3179,215.74,215.67,2.3186]
[1734538797290,2.3179,215.74,215.67,5.48519737]
[1734538797589,2.318,215.73,215.68,2.3185]
[1734538797983,2.58,215.76,215.68,2.3185]
[1734538798181,2.318,215.74,215.68,2.3185]
[1734538798480,2.58,215.76,215.63,7.138]
[1734538798685,2.3186,215.68,215.63,4.578]
[1734538798882,2.56,215.71,215.63,4.578]
[1734538799182,2.3184,215.69,215.63,6.8971]
[1734538799788,2.56,215.75,215.63,4.578]
[1734538799988,2.56,215.75,215.66,18.17225835]
[1734538800688,2.56,215.75,215.63,4.578]
[1734538800889,2.3183,215.71,215.65,2.3189]
[1734538801090,2.56,215.75,215.63,4.578]
[1734538801486,4.8779,215.75,215.63,4.578]
[1734538801691,1.5058,215.81,215.64,2.56]
[1734538801886,2.3177,215.76,215.7,2.3183]
[1734538802097,2.56,215.8,215.7,2.3183]
[1734538802287,2.56,215.8,215.64,2.56]
[1734538802691,2.3178,215.75,215.69,2.3183]
[1734538802896,2.3178,215.75,215.64,2.56]
[1734538802897,2.56,215.75,215.64,2.56]
[1734538803290,18.17225835,215.88,215.69,18.17225835]
[1734538803487,2.56,215.81,215.69,18.17225835]
[1734538803693,2.56,215.8,215.69,18.17225835]
[1734538804293,2.3169,215.83,215.73,18.17225835]
[1734538804498,2.56,215.85,215.73,18.17225835]
[1734538804794,2.56,215.85,215.74,3.0459]
[1734538804990,1.5199,215.88,215.74,3.0459]
[1734538805191,2.56,215.87,215.74,7.1709]
[1734538805389,1.5199,215.88,215.74,7.1709]
[1734538805589,2.9433,215.89,215.77,18.17225835]
[1734538805786,2.56,215.88,215.77,18.17225835]
[1734538806096,18.17225835,215.96,215.81,18.17225835]
[1734538806097,8.23817189,215.96,215.81,18.17225835]
[1734538806298,8.23817189,215.96,215.82,2.56]
[1734538806596,2.56,215.96,215.82,2.56]
[1734538807289,2.56,215.96,215.85,18.17225835]
[1734538807493,2.56,215.96,215.82,2.56]
[1734538807995,2.316,215.92,215.82,2.56]
[1734538808795,2.3162,215.91,215.82,2.56]
[1734538808990,2.58,215.9,215.81,18.17225835]
[1734538809195,2.58,215.89,215.81,18.17225835]
[1734538809396,2.3163,215.89,215.81,18.17225835]
[1734538809596,2.58,215.9,215.81,2.3171]
[1734538809794,2.3164,215.89,215.77,20.75225835]
[1734538810197,2.58,215.9,215.82,2.3169]
[1734538810399,2.58,215.9,215.77,20.75225835]
[1734538810900,2.58,215.9,215.81,18.17225835]
[1734538811394,2.58,215.94,215.85,18.17225835]
[1734538811594,2.3153,215.99,215.85,18.17225835]
[1734538811791,2.58,216.01,215.89,18.17225835]
[1734538811991,2.3152,216.0,215.89,20.75225835]
[1734538812196,2.58,216.01,215.89,20.75225835]
[1734538812393,2.58,216.01,215.89,2.58]
[1734538812701,20.75225835,216.01,215.81,18.17225835]
[1734538812999,18.17225835,215.97,215.81,18.17225835]
[1734538813196,2.9905,216.03,215.78,2.58]
[1734538813197,4.15,215.96,215.85,18.17225835]
[1734538813396,2.58,215.95,215.85,18.17225835]
[1734538813797,2.58,215.95,215.92,2.316]
[1734538814096,2.58,215.95,215.86,4.4731]
[1734538814791,2.56,215.96,215.86,4.4731]
[1734538814999,4.8756,215.96,215.9,2.3161]
[1734538815191,4.8756,215.96,215.86,4.4731]
[1734538815192,2.56,215.96,215.86,4.4731]
[1734538815495,2.56,215.96,215.81,18.17225835]
[1734538815695,18.17225835,215.95,215.79,2.3173]
[1734538816100,18.17225835,215.95,215.77,18.17225835]
[1734538816305,18.17225835,215.95,215.82,2.317]
[1734538816599,2.56,215.94,215.77,18.17225835]
[1734538816800,2.3167,215.86,215.8,2.3172]
[1734538816995,2.56,215.86,215.76,2.935]
[1734538817300,2.56,215.86,215.69,2.56]
[1734538817696,2.56,215.86,215.74,5.51706629]
[1734538818505,2.3169,215.84,215.74,5.51706629]
[1734538818694,2.56,215.86,215.77,18.17225835]
[1734538819802,2.3168,215.84,215.77,18.17225835]
[1734538820304,2.3168,215.84,215.79,2.3174]
[1734538820804,2.56,215.86,215.61,6.41420791]
[1734538821002,2.56,215.86,215.71,23.64313178]
[1734538821203,2.3175,215.78,215.71,23.64313178]
[1734538821403,2.56,215.79,215.73,2.3179]
[1734538821600,2.56,215.79,215.71,23.64313178]
[1734538821601,2.56,215.79,215.71,18.17225835]
[1734538821798,2.3178,215.76,215.68,2.3184]
[1734538822105,2.56,215.79,215.68,2.3184]
[1734538822307,2.3179,215.74,215.69,2.3184]
[1734538822605,2.56,215.74,215.67,18.17225835]
[1734538823106,2.56,215.74,215.69,2.3184]
[1734538823305,2.56,215.74,215.67,18.17225835]
[1734538823806,2.56,215.74,215.72,2.3181]
[1734538824005,2.58,215.78,215.67,23.61606722]
[1734538824305,4.4981,215.82,215.71,18.17225835]
[1734538824604,2.58,215.81,215.71,18.17225835]
[1734538825895,4.4237,215.91,215.71,18.17225835]
[1734538826100,2.58,215.9,215.75,18.17225835]
[1734538826300,2.58,215.89,215.75,18.17225835]
[1734538826498,2.58,215.89,215.76,4.455]
[1734538826706,2.58,215.88,215.76,4.455]
[1734538827402,2.3166,215.86,215.81,2.3171]
[1734538828001,2.58,215.88,215.75,18.17225835]
[1734538828198,2.58,215.88,215.72,7.1461]
[1734538828402,2.58,215.88,215.75,18.17225835]
[1734538828907,2.58,215.88,215.72,7.1461]
[1734538829804,2.317,215.82,215.77,2.3175]
[1734538830196,2.58,215.83,215.75,18.17225835]
[1734538830402,4.8969,215.83,215.79,2.3174]
[1734538830596,4.8969,215.83,215.75,18.17225835]
[1734538831007,2.3165,215.88,215.82,2.317]
[1734538831304,2.58,215.91,215.79,18.17225835]
[1734538831509,22.59335835,215.99,215.87,2.3165]
[1734538831706,22.59335835,215.99,215.79,18.17225835]
[1734538831707,5.47957066,215.96,215.79,18.17225835]
[1734538832101,5.47957066,215.96,215.85,2.3166]
[1734538832715,2.3163,215.89,215.84,2.3168]
[1734538834006,2.56,215.91,215.79,20.73225835]
[1734538834007,2.3165,215.87,215.79,20.73225835]
[1734538834310,2.56,215.91,215.79,20.73225835]
[1734538834812,2.56,215.91,215.79,18.17225835]
[1734538835105,2.56,215.91,215.82,2.3169]
[1734538835307,2.56,215.91,215.79,18.17225835]
[1734538835612,5.47957066,215.96,215.84,18.17225835]
[1734538835911,2.56,215.95,215.84,18.17225835]
[1734538836409,2.56,215.96,215.84,18.17225835]
[1734538836608,5.49382125,216.0,215.85,5.72]
[1734538836812,2.56,215.99,215.85,3.16]
[1734538837015,7.1417,215.99,215.85,1.5722]
[1734538837213,2.3157,215.95,215.86,2.3165]
[1734538837411,2.56,215.94,215.85,1.5722]
[1734538837609,2.56,215.95,215.85,1.5722]
[1734538837806,2.3158,215.94,215.88,2.3164]
[1734538838009,2.56,215.95,215.85,1.5722]
[1734538838411,2.56,215.95,215.83,2.3169]
[1734538838412,2.3165,215.88,215.83,2.3169]
[1734538838612,2.3165,215.88,215.81,1.5751]
[1734538838613,2.56,215.89,215.81,1.5751]
[1734538838809,2.56,215.9,215.78,5.58750412]
[1734538839010,2.3172,215.81,215.77,2.3176]
[1734538839210,2.56,215.84,215.77,2.3176]
[1734538839407,2.56,215.84,215.76,43.57551407]
[1734538839612,2.56,215.84,215.72,13.66810791]
[1734538839813,18.17225835,215.92,215.72,13.66810791]
[1734538840008,2.3166,215.87,215.81,2.3171]
[1734538840207,2.56,215.88,215.76,18.17225835]
[1734538840412,2.56,215.88,215.77,2.56]
[1734538840606,2.56,215.88,215.8,18.17225835]
[1734538840812,2.56,215.92,215.84,18.17225835]
[1734538841014,2.56,215.91,215.8,18.17225835]
[1734538841212,2.56,215.9,215.83,2.3169]
[1734538841505,2.56,215.9,215.81,1.5422]
[1734538841817,2.56,215.9,215.8,18.17225835]
[1734538842813,2.3164,215.88,215.84,2.3168]
[1734538843717,2.3165,215.87,215.83,2.3169]
[1734538843910,2.3165,215.87,215.8,18.17225835]
[1734538844211,2.56,215.9,215.83,2.3168]
[1734538844411,2.3164,215.88,215.8,18.17225835]
[1734538844813,2.56,215.9,215.8,18.17225835]
[1734538845116,2.56,215.94,215.84,18.17225835]
[1734538845312,2.56,215.93,215.88,2.3164]
[1734538845616,2.56,215.93,215.84,18.17225835]
[1734538845617,2.316,215.93,215.84,18.17225835]
[1734538846016,2.316,215.93,215.84,19.66695835]
[1734538846411,2.316,215.92,215.84,19.66695835]
[1734538847216,2.56,215.94,215.84,19.66695835]
[1734538847621,2.56,215.98,215.88,18.17225835]
[1734538847919,2.56,215.98,215.84,19.66695835]
[1734538848318,2.56,215.98,215.86,2.3166]
[1734538848520,2.3162,215.9,215.86,2.3166]
[1734538849015,2.3163,215.89,215.84,19.66695835]
[1734538849220,2.3163,215.89,215.85,2.3167]
[1734538850920,2.56,215.91,215.8,18.17225835]
[1734538851120,2.56,215.91,215.79,5.67574323]
[1734538851420,2.3168,215.85,215.8,2.3172]
[1734538851615,2.56,215.85,215.75,1.5363]
[1734538851917,2.56,215.85,215.75,7.029612]
[1734538852516,2.56,215.85,215.75,1.5363]
[1734538852918,2.317,215.82,215.75,3.854]
[1734538853218,2.56,215.85,215.75,3.854]
[1734538853417,2.56,215.85,215.75,2.3177]
[1734538853618,2.3172,215.81,215.75,2.3177]
[1734538854119,2.56,215.85,215.75,2.3177]
[1734538854319,2.3173,215.8,215.75,2.3177]
[1734538854514,2.3173,215.8,215.74,5.52056995]
[1734538854719,2.3173,215.8,215.76,2.3177]
[1734538854919,2.3173,215.8,215.74,5.52056995]
[1734538855221,4.8773,215.8,215.74,5.52056995]
[1734538855420,2.56,215.8,215.71,21.29665835]
[1734538855719,2.56,215.8,215.71,26.83759753]
[1734538856116,2.3176,215.77,215.72,2.318]
[1734538856622,2.3176,215.77,215.71,26.83759753]
[1734538856623,2.56,215.8,215.71,26.83759753]
[1734538856821,2.56,215.8,215.71,29.15569753]
[1734538857417,2.3176,215.77,215.71,29.15569753]
[1734538858116,2.3176,215.77,215.71,26.83759753]
[1734538858317,2.3176,215.77,215.72,2.3181]
[1734538858718,1.4863,215.84,215.71,26.83759753]
[1734538858922,2.56,215.83,215.71,26.83759753]
[1734538859327,2.3172,215.81,215.76,2.3176]
[1734538859624,2.56,215.83,215.76,2.3176]
[1734538860126,2.56,215.82,215.76,2.3176]
[1734538860329,2.3172,215.81,215.76,2.3176]
[1734538860529,2.56,215.82,215.77,2.3176]
[1734538860827,2.3176,215.77,215.71,26.83759753]
[1734538861031,2.56,215.76,215.71,21.29665835]
[1734538861623,2.3178,215.75,215.67,18.17225835]
[1734538862223,2.56,215.76,215.67,23.78524713]
[1734538863331,2.56,215.76,215.67,18.17225835]
[1734538863533,2.56,215.76,215.66,0.3927]
[1734538864127,1.4435,215.75,215.66,0.3927]
[1734538864324,4.6191,215.75,215.66,0.3927]
[1734538864925,2.3187,215.67,215.66,0.3927]
[1734538865129,4.8787,215.67,215.66,0.3927]
[1734538865527,4.8787,215.67,215.59,18.17225835]
[1734538865528,2.3193,215.61,215.56,3.1151]
[1734538866432,2.56,215.62,215.51,18.17225835]
[1734538866832,2.32,215.55,215.5,5.62457092]
[1734538867040,2.32,215.55,215.48,1.4929]
[1734538867433,2.52,215.56,215.48,1.4929]
[1734538867835,2.52,215.56,215.47,23.54405835]
[1734538867836,2.52,215.56,215.47,19.72865835]
[1734538869037,2.52,215.56,215.47,1.5564]
[1734538869437,2.3203,215.53,215.47,3.8772]
[1734538869638,1.5443,215.61,215.47,19.72865835]
[1734538869839,2.52,215.61,215.51,18.17225835]
[1734538870035,2.52,215.61,215.58,2.3196]
[1734538870334,1.4758,215.68,215.58,2.3196]
[1734538870641,2.3191,215.63,215.57,2.3197]
[1734538870939,2.52,215.62,215.55,18.17225835]
[1734538871135,2.52,215.62,215.51,20.69225835]
[1734538871536,2.52,215.62,215.51,18.17225835]
[1734538871733,5.66443271,215.66,215.51,18.17225835]
[1734538872038,2.52,215.65,215.51,18.17225835]
[1734538872539,5.66443271,215.66,215.51,18.17225835]
[1734538872740,2.52,215.65,215.51,18.17225835]
[1734538872937,2.52,215.65,215.52,1.5066]
[1734538873339,18.17225835,215.73,215.55,18.17225835]
[1734538873535,2.52,215.72,215.56,1.5906]
[1734538873740,2.3186,215.68,215.6,2.3193]
[1734538873940,2.52,215.67,215.6,2.3193]
[1734538874139,2.52,215.66,215.6,2.3193]
[1734538874334,2.52,215.66,215.56,1.5906]
[1734538874538,2.52,215.66,215.62,2.3192]
[1734538874935,2.3187,215.67,215.57,2.52]
[1734538875140,2.52,215.68,215.57,2.52]
[1734538875338,2.52,215.67,215.57,2.52]
[1734538875739,2.52,215.67,215.56,19.76285835]
[1734538877443,4.8388,215.67,215.61,2.3192]
[1734538877643,4.8388,215.67,215.56,19.76285835]
[1734538877835,2.52,215.67,215.57,5.44202906]
[1734538878034,1.4922,215.74,215.6,18.17225835]
[1734538878241,2.52,215.73,215.6,18.17225835]
[1734538878440,2.3184,215.7,215.6,18.17225835]
[1734538879142,53.02,215.77,215.64,18.17225835]
[1734538879340,2.52,215.76,215.65,1.4426]
[1734538879543,2.318,215.73,215.67,2.3186]
[1734538879743,2.52,215.76,215.65,2.9973]
[1734538880142,2.52,215.76,215.66,2.3188]
[1734538880637,2.52,215.77,215.65,2.9973]
[1734538880841,2.52,215.77,215.66,1.5247]
[1734538881636,2.3182,215.72,215.66,1.5247]
[1734538881840,2.52,215.76,215.65,2.9973]
[1734538882044,2.3182,215.72,215.67,2.3186]
[1734538882440,2.52,215.71,215.67,2.3186]
[1734538883249,2.52,215.71,215.65,3.7615]
[1734538883544,2.52,215.71,215.65,2.3189]
[1734538883741,2.3183,215.7,215.65,2.3189]
[1734538883945,2.52,215.71,215.61,1.4966]
[1734538884147,2.52,215.71,215.64,18.17225835]
[1734538884343,5.63822609,215.79,215.66,2.3187]
[1734538884647,2.52,215.78,215.64,18.17225835]
[1734538885044,2.52,215.78,215.7,2.3182]
[1734538885045,2.3179,215.75,215.7,2.3182]
[1734538885239,2.52,215.78,215.64,18.17225835]
[1734538885446,2.52,215.78,215.61,1.4966]
[1734538885648,2.3183,215.7,215.61,1.4966]
[1734538885849,4.8383,215.7,215.61,1.4966]
[1734538886049,4.8383,215.7,215.65,2.3188]
[1734538886344,4.8383,215.7,215.61,1.4966]
[1734538886941,2.52,215.7,215.61,1.4966]
[1734538887342,2.52,215.7,215.58,3.0076]
[1734538887749,2.52,215.7,215.61,2.3193]
[1734538888250,2.3189,215.66,215.61,2.3193]
[1734538888448,2.52,215.65,215.61,2.3193]